fUSD/lending_fUSD_20251201
["ID","MTS","AMOUNT","RATE_DAILY","PERIOD"]
[395235886,1764559845158,-945.69207061,0.00014998,2]
[395235887,1764559845169,-173515.77934385,0.00015,4]
[395235888,1764559845180,-10006.51407668,0.00015,2]
[395235889,1764559845191,-151.0,0.00015069,2]
[395235890,1764559845202,-587.0,0.00015098,2]
[395235891,1764559845212,-1498.0,0.00015099,2]
[395235892,1764559845222,-4543.0,0.00015132,2]
[395235893,1764559845232,-1947.0,0.00015132,2]
[395235894,1764559845242,-1180.0,0.00015132,2]
[395235895,1764559845254,-199.38,0.00015141,2]
[395235896,1764559845266,-2351.0,0.00015176,2]
[395235897,1764559845278,-1413.01,0.00015224,2]
[395235898,1764559845290,-4543.0,0.00015269,2]
[395235899,1764559845301,-1947.0,0.00015269,2]
[395235900,1764559845311,-1180.0,0.00015269,2]
[395235901,1764559845323,-150.0,0.00015288,2]
[395235902,1764559845332,-150.0,0.00015288,2]
[395235903,1764559845342,-150.00000001,0.00015288,2]
[395235904,1764559845352,-153.94390529,0.00015288,2]
[395235905,1764559845362,-215.77357495,0.00015288,2]
[395235906,1764559845371,-150.0,0.00015288,2]
[395235907,1764559845382,-150.0,0.00015288,2]
[395235908,1764559845391,-150.0,0.00015288,2]
[395235909,1764559845401,-150.0,0.00015288,2]
[395235910,1764559845410,-150.0,0.00015288,2]
[395235911,1764559845420,-150.0,0.00015288,2]
[395235912,1764559845429,-150.0,0.00015288,2]
[395235913,1764559845438,-150.0,0.00015288,2]
[395235914,1764559845448,-190.82998658,0.00015288,2]
[395235915,1764559845457,-150.0,0.00015288,2]
[395235916,1764559845467,-150.0,0.00015288,2]
[395235917,1764559845476,-150.0,0.00015288,2]
[395235918,1764559845485,-1517.64,0.000153,2]
[395235919,1764559845495,-153.94390529,0.00015305,2]
[395235920,1764559845505,-215.77357495,0.00015305,2]
[395235921,1764559845516,-150.0,0.00015311,2]
[395235922,1764559845526,-150.0,0.00015315,2]
[395235923,1764559845537,-150.0,0.00015319,2]
[395235924,1764559845548,-150.0,0.0001532,2]
[395235925,1764559845558,-153.94390529,0.00015322,2]
[395235926,1764559845568,-215.77357495,0.00015322,2]
[395235927,1764559845577,-218.59,0.00015322,2]
[395235928,1764559845587,-150.0,0.00015335,2]
[395235929,1764559845598,-153.94390529,0.00015339,2]
[395235930,1764559845608,-215.77357495,0.00015339,2]
[395235931,1764559845617,-150.0,0.00015342,2]
[395235932,1764559845627,-150.0,0.00015342,2]
[395235933,1764559845637,-600.0,0.00015342,2]
[395235934,1764559845646,-150.0,0.00015346,2]
[395235935,1764559845656,-150.0,0.00015349,2]
[395235936,1764559845665,-150.0,0.00015353,2]
[395235937,1764559845674,-153.94390529,0.00015356,2]
[395235938,1764559845685,-215.77357495,0.00015356,2]
[395235939,1764559845695,-150.0,0.00015358,2]
[395235940,1764559845706,-150.0,0.00015369,2]
[395235941,1764559845716,-150.0,0.00015369,2]
[395235942,1764559845727,-153.94390529,0.00015373,2]
[395235943,1764559845738,-215.77357495,0.00015373,2]
[395235944,1764559845748,-150.0,0.0001538,2]
[395235945,1764559845757,-150.0,0.00015382,2]
[395235946,1764559845766,-150.0,0.00015386,2]
[395235947,1764559845775,-153.94390529,0.00015391,2]
[395235948,1764559845785,-215.77357495,0.00015391,2]
[395235949,1764559845796,-150.0,0.00015396,2]
[395235950,1764559845806,-150.0,0.00015397,2]
[395235951,1764559845816,-13856.4797207,0.000154,2]
[395235952,1764559845826,-504.59701012,0.000154,2]
[395235953,1764559845836,-1600.0,0.00015404,2]
[395235954,1764559845846,-150.0,0.00015405,2]
[395235955,1764559845856,-150.0,0.00015406,2]
[395235956,1764559845866,-4543.0,0.00015406,2]
[395235957,1764559845876,-1947.0,0.00015406,2]
[395235958,1764559845888,-1180.0,0.00015406,2]
[395235959,1764559845897,-153.94390529,0.00015408,2]
[395235960,1764559845907,-215.77357495,0.00015408,2]
[395235961,1764559845916,-150.0,0.00015409,2]
[395235962,1764559845926,-150.0,0.00015411,2]
[395235963,1764559845935,-175.6,0.00015416,2]
[395235964,1764559845945,-150.0,0.00015418,2]
[395235965,1764559845954,-150.0,0.00015422,2]
[395235966,1764559845965,-153.94390529,0.00015425,2]
[395235967,1764559845975,-215.77357495,0.00015425,2]
[395235968,1764559845985,-150.0,0.00015429,2]
[395235969,1764559845996,-153.94390529,0.00015442,2]
[395235970,1764559846006,-215.77357495,0.00015442,2]
[395235971,1764559846016,-150.0,0.00015442,2]
[395235972,1764559846027,-150.0,0.00015449,2]
[395235973,1764559846038,-150.0,0.00015449,2]
[395235974,1764559846049,-150.0,0.00015451,2]
[395235975,1764559846058,-150.0,0.00015452,2]
[395235976,1764559846067,-150.0,0.00015453,2]
[395235977,1764559846077,-40196.82736878,0.00015455,2]
[395235978,1764559846087,-153.94390529,0.00015459,2]
[395235979,1764559846097,-215.77357495,0.00015459,2]
[395235980,1764559846107,-150.0,0.00015463,2]
[395235981,1764559846116,-1500.0,0.00015468,2]
[395235982,1764559846126,-501.51277925,0.00015468,2]
[395235983,1764559846136,-1500.0,0.00015468,2]
[395235984,1764559846146,-1195.52666433,0.00015468,2]
[395235985,1764559846156,-501.12486699,0.00015468,2]
[395235986,1764559846166,-1500.0,0.00015468,2]
[395235987,1764559846177,-1500.0,0.00015468,2]
[395235988,1764559846186,-150.0,0.00015473,2]
[395235989,1764559846197,-153.94390529,0.00015476,2]
[395235990,1764559846207,-215.77357495,0.00015476,2]
[395235991,1764559846217,-150.0,0.00015476,2]
[395235992,1764559846486,-150.0,0.00015476,2]
[395235993,1764559846499,-150.0,0.00015476,2]
[395235994,1764559846512,-150.0,0.00015484,2]
[395235995,1764559846523,-153.94390529,0.00015494,2]
[395235996,1764559846535,-215.77357495,0.00015494,2]
[395235997,1764559846546,-207.4,0.00015497,2]
[395235998,1764559846558,-1413.01,0.00015498,2]
[395235999,1764559846570,-200.0,0.00015498,2]
[395236000,1764559846581,-500.0,0.00015498,2]
[395236001,1764559846591,-200.0,0.00015498,2]
[395236002,1764559846603,-150.0,0.000155,2]
[395236003,1764559846614,-150.0,0.00015503,2]
[395236004,1764559846625,-150.0,0.00015504,2]
[395236005,1764559846636,-150.0,0.00015507,2]
[395236006,1764559846645,-153.94390529,0.00015511,2]
[395236007,1764559846656,-215.77357495,0.00015511,2]
[395236008,1764559846668,-150.0,0.00015516,2]
[395236009,1764559846678,-150.0,0.00015522,2]
[395236010,1764559846689,-150.0,0.00015524,2]
[395236011,1764559846699,-153.94390529,0.00015528,2]
[395236012,1764559846709,-215.77357495,0.00015528,2]
[395236013,1764559846719,-150.0,0.0001553,2]
[395236014,1764559846730,-150.0,0.0001553,2]
[395236015,1764559846740,-150.0,0.0001553,2]
[395236016,1764559846750,-150.0,0.00015535,2]
[395236017,1764559846761,-4543.0,0.00015543,2]
[395236018,1764559846771,-1947.0,0.00015543,2]
[395236019,1764559846780,-1180.0,0.00015543,2]
[395236020,1764559846790,-153.94390529,0.00015545,2]
[395236021,1764559846801,-215.77357495,0.00015545,2]
[395236022,1764559846811,-150.0,0.00015547,2]
[395236023,1764559846821,-150.0,0.00015549,2]
[395236024,1764559846831,-500.0,0.00015555,2]
[395236025,1764559846841,-331.93282423,0.00015555,2]
[395236026,1764559846852,-150.0,0.00015557,2]
[395236027,1764559846862,-150.0,0.00015562,2]
[395236028,1764559846872,-153.94390529,0.00015562,2]
[395236029,1764559846884,-215.77357495,0.00015562,2]
[395236030,1764559846895,-150.0,0.00015566,2]
[395236031,1764559846905,-150.0,0.00015571,2]
[395236032,1764559846914,-150.0,0.00015571,2]
[395236033,1764559846924,-153.94390529,0.00015579,2]
[395236034,1764559846934,-215.77357495,0.00015579,2]
[395236035,1764559846944,-150.0,0.00015581,2]
[395236036,1764559846954,-150.0,0.00015582,2]
[395236037,1764559846964,-150.0,0.00015584,2]
[395236038,1764559846974,-150.0,0.00015594,2]
[395236039,1764559846985,-153.94390529,0.00015597,2]
[395236040,1764559846996,-215.77357495,0.00015597,2]
[395236041,1764559847008,-150.0,0.00015597,2]
[395236042,1764559847019,-150.0,0.00015611,2]
[395236043,1764559847029,-150.0,0.00015611,2]
[395236044,1764559847039,-153.94390529,0.00015614,2]
[395236045,1764559847049,-215.77357495,0.00015614,2]
[395236046,1764559847059,-150.0,0.00015614,2]
[395236047,1764559847069,-150.0,0.00015616,2]
[395236048,1764559847079,-151.0,0.00015617,2]
[395236049,1764559847089,-150.0,0.00015618,2]
[395236050,1764559847098,-150.0,0.00015627,2]
[395236051,1764559847108,-153.94390529,0.00015631,2]
[395236052,1764559847118,-215.77357495,0.00015631,2]
[395236053,1764559847129,-945.69207061,0.00015632,2]
[395236054,1764559847139,-150.0,0.00015638,2]
[395236055,1764559847148,-150.0,0.00015639,2]
[395236056,1764559847159,-150.0,0.00015642,2]
[395236057,1764559847170,-150.0,0.00015647,2]
[395236058,1764559847180,-153.94390529,0.00015648,2]
[395236059,1764559847189,-215.77357495,0.00015648,2]
[395236060,1764559847199,-150.0,0.00015652,2]
[395236061,1764559847209,-150.0,0.00015658,2]
[395236062,1764559847220,-153.94390529,0.00015665,2]
[395236063,1764559847229,-215.77357495,0.00015665,2]
[395236064,1764559847238,-150.0,0.00015665,2]
[395236065,1764559847248,-150.0,0.00015665,2]
[395236066,1764559847258,-150.0,0.00015665,2]
[395236067,1764559847268,-150.0,0.00015671,2]
[395236068,1764559847282,-150.0,0.0001568,2]
[395236069,1764559847293,-4543.0,0.0001568,2]
[395236070,1764559847304,-1947.0,0.0001568,2]
[395236071,1764559847314,-1180.0,0.0001568,2]
[395236072,1764559847325,-153.94390529,0.00015682,2]
[395236073,1764559847334,-215.77357495,0.00015682,2]
[395236074,1764559847344,-150.0,0.00015689,2]
[395236075,1764559847356,-150.0,0.00015689,2]
[395236076,1764559847367,-150.0,0.00015692,2]
[395236077,1764559847377,-150.0,0.00015692,2]
[395236078,1764559847388,-150.0,0.00015698,2]
[395236079,1764559847399,-153.94390529,0.00015699,2]
[395236080,1764559847409,-215.77357495,0.00015699,2]
[395236081,1764559847420,-150.0,0.00015712,2]
[395236082,1764559847430,-150.0,0.00015712,2]
[395236083,1764559847440,-150.0,0.00015712,2]
[395236084,1764559847450,-153.94390529,0.00015717,2]
[395236085,1764559847461,-215.77357495,0.00015717,2]
[395236086,1764559847473,-150.0,0.00015719,2]
[395236087,1764559847483,-150.0,0.0001572,2]
[395236088,1764559847493,-150.0,0.00015726,2]
[395236089,1764559847504,-153.94390529,0.00015734,2]
[395236090,1764559847514,-215.77357495,0.00015734,2]
[395236091,1764559847525,-150.0,0.00015736,2]
[395236092,1764559847535,-150.0,0.00015745,2]
[395236093,1764559847545,-150.0,0.00015746,2]
[395236094,1764559847556,-153.94390529,0.00015751,2]
[395236095,1764559847567,-215.77357495,0.00015751,2]
[395236096,1764559847577,-150.0,0.00015751,2]
[395236097,1764559847589,-150.0,0.00015756,2]
[395236098,1764559847599,-150.0,0.0001576,2]
[395236099,1764559847609,-153.94390529,0.00015768,2]
[395236100,1764559847619,-215.77357495,0.00015768,2]
[395236101,1764559847630,-1413.01,0.00015772,2]
[395236102,1764559847642,-150.0,0.00015773,2]
[395236103,1764559847652,-150.0,0.00015773,2]
[395236104,1764559847662,-150.0,0.00015773,2]
[395236105,1764559847673,-150.0,0.00015778,2]
[395236106,1764559847683,-150.0,0.00015781,2]
[395236107,1764559847693,-150.0,0.00015782,2]
[395236108,1764559847703,-150.0,0.00015783,2]
[395236109,1764559847714,-153.94390529,0.00015785,2]
[395236110,1764559847725,-215.77357495,0.00015785,2]
[395236111,1764559847735,-199.38,0.000158,2]
[395236112,1764559847745,-150.0,0.000158,2]
[395236113,1764559847756,-153.94390529,0.00015802,2]
[395236114,1764559847766,-215.77357495,0.00015802,2]
[395236115,1764559847777,-150.0,0.00015807,2]
[395236116,1764559847787,-150.0,0.0001581,2]
[395236117,1764559847799,-150.0,0.00015813,2]
[395236118,1764559847810,-150.0,0.00015815,2]
[395236119,1764559847821,-4558.0973467,0.00015817,2]
[395236120,1764559847832,-1949.40824377,0.00015817,2]
[395236121,1764559847843,-1201.45686668,0.00015817,2]
[395236122,1764559847853,-153.94390529,0.0001582,2]
[395236123,1764559847863,-215.77357495,0.0001582,2]
[395236124,1764559847875,-150.0,0.00015827,2]
[395236125,1764559847886,-150.0,0.0001583,2]
[395236126,1764559847898,-150.0,0.00015836,2]
[395236127,1764559847909,-153.94390529,0.00015837,2]
[395236128,1764559847919,-215.77357495,0.00015837,2]
[395236129,1764559847930,-484.48020322,0.0001584,2]
[395236130,1764559847941,-150.0,0.00015843,2]
[395236131,1764559847951,-150.0,0.00015844,2]
[395236132,1764559847962,-153.94390529,0.00015854,2]
[395236133,1764559847973,-215.77357495,0.00015854,2]
[395236134,1764559847984,-150.0,0.00015854,2]
[395236135,1764559847994,-150.0,0.00015854,2]
[395236136,1764559848005,-150.0,0.00015854,2]
[395236137,1764559848017,-150.0,0.00015854,2]
[395236138,1764559848027,-150.0,0.00015854,2]
[395236139,1764559848038,-150.0,0.00015854,2]
[395236140,1764559848048,-153.94390529,0.00015871,2]
[395236141,1764559848060,-215.77357495,0.00015871,2]
[395236142,1764559848070,-150.0,0.00015873,2]
[395236143,1764559848080,-150.0,0.00015874,2]
[395236144,1764559848090,-150.0,0.00015876,2]
[395236145,1764559848101,-150.0,0.00015877,2]
[395236146,1764559848111,-150.0,0.00015881,2]
[395236147,1764559848122,-153.94390529,0.00015888,2]
[395236148,1764559848132,-215.77357495,0.00015888,2]
[395236149,1764559848142,-150.0,0.0001589,2]
[395236150,1764559848152,-600.0,0.0001589,2]
[395236151,1764559848162,-150.0,0.00015894,2]
[395236152,1764559848173,-500.0,0.00015899,2]
[395236153,1764559848184,-956.0066927,0.000159,2]
[395236154,1764559848194,-956.00669265,0.000159,2]
[395236155,1764559848206,-956.00669265,0.000159,2]
[395236156,1764559848217,-956.00669265,0.000159,2]
[395236157,1764559848227,-956.00669265,0.000159,2]
[395236158,1764559848238,-956.00669265,0.000159,2]
[395236159,1764559848248,-150.0,0.00015901,2]
[395236160,1764559848259,-153.94390529,0.00015905,2]
[395236161,1764559848271,-215.77357495,0.00015905,2]
[395236162,1764559848286,-150.0,0.00015905,2]
[395236163,1764559848297,-798.51664654,0.00015906,2]
[395236164,1764559848310,-150.0,0.00015908,2]
[395236165,1764559848324,-150.0,0.00015908,2]
[395236166,1764559848335,-150.0,0.00015918,2]
[395236167,1764559848346,-150.0,0.00015918,2]
[395236168,1764559848358,-153.94390529,0.00015923,2]
[395236169,1764559848369,-215.77357495,0.00015923,2]
[395236170,1764559848379,-150.0,0.00015925,2]
[395236171,1764559848390,-150.0,0.00015932,2]
[395236172,1764559848400,-150.0,0.00015935,2]
[395236173,1764559848411,-150.0,0.00015935,2]
[395236174,1764559848422,-150.0,0.00015936,2]
[395236175,1764559848431,-40196.82736878,0.00015937,2]
[395236176,1764559848442,-153.94390529,0.0001594,2]
[395236177,1764559848452,-215.77357495,0.0001594,2]
[395236178,1764559848463,-150.0,0.00015941,2]
[395236179,1764559848473,-150.0,0.00015945,2]
[395236180,1764559848484,-150.0,0.00015948,2]
[395236181,1764559848495,-153.94390529,0.00015957,2]
[395236182,1764559848507,-215.77357495,0.00015957,2]
[395236183,1764559848518,-150.0,0.00015962,2]
[395236184,1764559848529,-150.0,0.00015967,2]
[395236185,1764559848540,-150.0,0.00015972,2]
[395236186,1764559848552,-150.0,0.00015974,2]
[395236187,1764559848563,-153.94390529,0.00015974,2]
[395236188,1764559848573,-215.77357495,0.00015974,2]
[395236189,1764559848584,-150.0,0.00015989,2]
[395236190,1764559848595,-150.0,0.00015991,2]
[395236191,1764559848605,-153.94390529,0.00015991,2]
[395236192,1764559848615,-215.77357495,0.00015991,2]
[395236193,1764559848624,-150.0,0.00015995,2]
[395236194,1764559848635,-151.0,0.00015997,2]
[395236195,1764559848645,-1227.91652633,0.00015998,2]
[395236196,1764559848654,-4205.89366882,0.00015998,2]
[395236197,1764559848665,-2229.05280589,0.00015998,2]
[395236198,1764559848675,-150.0,0.00015998,2]
[395236199,1764559848685,-552.29203276,0.00016,2]
[395236200,1764559848694,-23669.11750587,0.00016,2]
[395236201,1764559848704,-217992.40892067,0.00016,2]
[395236202,1764559848714,-150.0,0.00016,2]
[395236203,1764559848724,-346159.54810529,0.00016,4]
[395236204,1764559848735,-2000.0,0.00016,2]
[395236205,1764559848745,-150.0,0.00016006,2]
[395236206,1764559848755,-153.94390529,0.00016008,2]
[395236207,1764559848766,-215.77357495,0.00016008,2]
[395236208,1764559848777,-150.0,0.00016016,2]
[395236209,1764559848787,-150.0,0.00016016,2]
[395236210,1764559848798,-150.0,0.00016016,2]
[395236211,1764559848809,-505.67913008,0.00016016,2]
[395236212,1764559848819,-2000.0,0.00016016,2]
[395236213,1764559848830,-2000.0,0.00016016,2]
[395236214,1764559848841,-500.0,0.00016016,2]
[395236215,1764559848851,-150.0,0.00016019,2]
[395236216,1764559848861,-153.94390529,0.00016025,2]
[395236217,1764559848871,-215.77357495,0.00016025,2]
[395236218,1764559848881,-150.0,0.00016029,2]
[395236219,1764559848892,-150.0,0.00016039,2]
[395236220,1764559848902,-153.94390529,0.00016043,2]
[395236221,1764559848913,-215.77357495,0.00016043,2]
[395236222,1764559848923,-150.0,0.00016043,2]
[395236223,1764559848932,-150.0,0.00016043,2]
[395236224,1764559848943,-150.0,0.00016043,2]
[395236225,1764559848952,-1413.01,0.00016046,2]
[395236226,1764559848962,-200.0,0.00016046,2]
[395236227,1764559848972,-500.0,0.00016046,2]
[395236228,1764559848982,-200.0,0.00016046,2]
[395236229,1764559848992,-150.0,0.00016049,2]
[395236230,1764559849001,-484.4802032,0.00016052,2]
[395236231,1764559849101,-150.0,0.00016055,2]
[395236232,1764559849112,-153.94390529,0.0001606,2]
[395236233,1764559849122,-215.77357495,0.0001606,2]
[395236234,1764559849132,-150.0,0.0001606,2]
[395236235,1764559849142,-150.0,0.00016066,2]
[395236236,1764559849151,-150.0,0.0001607,2]
[395236237,1764559849161,-150.0,0.00016072,2]
[395236238,1764559849170,-153.94390529,0.00016077,2]
[395236239,1764559849180,-215.77357495,0.00016077,2]
[395236240,1764559849190,-150.0,0.0001609,2]
[395236241,1764559849199,-150.0,0.00016091,2]
[395236242,1764559849209,-153.94390529,0.00016094,2]
[395236243,1764559849218,-215.77357495,0.00016094,2]
[395236244,1764559849228,-150.0,0.00016097,2]
[395236245,1764559849237,-150.0,0.00016097,2]
[395236246,1764559849246,-736.0,0.00016104,2]
[395236247,1764559849256,-150.0,0.00016104,2]
[395236248,1764559849266,-150.0,0.00016108,2]
[395236249,1764559849277,-150.0,0.0001611,2]
[395236250,1764559849288,-153.94390529,0.00016111,2]
[395236251,1764559849299,-215.77357495,0.00016111,2]
[395236252,1764559849309,-150.0,0.00016113,2]
[395236253,1764559849319,-9999.99,0.00016116,2]
[395236254,1764559849328,-150.0,0.00016122,2]
[395236255,1764559849338,-150.0,0.00016124,2]
[395236256,1764559849347,-153.94390529,0.00016128,2]
[395236257,1764559849358,-215.77357495,0.00016128,2]
[395236258,1764559849368,-150.0,0.00016137,2]
[395236259,1764559849377,-150.0,0.00016137,2]
[395236260,1764559849386,-150.0,0.00016137,2]
[395236261,1764559849396,-150.0,0.00016137,2]
[395236262,1764559849406,-150.0,0.00016137,2]
[395236263,1764559849416,-150.0,0.00016137,2]
[395236264,1764559849427,-908.0,0.00016144,2]
[395236265,1764559849436,-153.94390529,0.00016146,2]
[395236266,1764559849446,-215.77357495,0.00016146,2]
[395236267,1764559849456,-936.93286639,0.00016149,2]
[395236268,1764559849465,-620.0,0.00016149,2]
[395236269,1764559849475,-151.0,0.00016149,2]
[395236270,1764559849485,-257.91778498,0.00016149,2]
[395236271,1764559849495,-358.32829599,0.00016149,2]
[395236272,1764559849504,-500.0,0.00016149,2]
[395236273,1764559849514,-533.88981491,0.00016149,2]
[395236274,1764559849524,-500.0,0.00016149,2]
[395236275,1764559849534,-500.0,0.00016149,2]
[395236276,1764559849544,-500.0,0.00016149,2]
[395236277,1764559849554,-500.0,0.00016149,2]
[395236278,1764559849563,-500.0,0.00016149,2]
[395236279,1764559849572,-151.0,0.00016149,2]
[395236280,1764559849582,-500.0,0.00016149,2]
[395236281,1764559849591,-151.0,0.00016149,2]
[395236282,1764559849600,-500.0,0.00016149,2]
[395236283,1764559849610,-151.0,0.00016149,2]
[395236284,1764559849619,-500.0,0.00016149,2]
[395236285,1764559849628,-151.0,0.00016149,2]
[395236286,1764559849638,-151.0,0.00016149,2]
[395236287,1764559849647,-500.0,0.00016149,2]
[395236288,1764559849657,-151.0,0.00016149,2]
[395236289,1764559849666,-151.0,0.00016149,2]
[395236290,1764559849675,-500.0,0.00016149,2]
[395236291,1764559849684,-151.0,0.00016149,2]
[395236292,1764559849693,-151.0,0.00016149,2]
[395236293,1764559849702,-151.0,0.00016149,2]
[395236294,1764559849711,-500.0,0.00016149,2]
[395236295,1764559849720,-8000.0,0.00016149,2]
[395236296,1764559849729,-151.0,0.00016149,2]
[395236297,1764559849738,-151.0,0.00016149,2]
[395236298,1764559849747,-500.0,0.00016149,2]
[395236299,1764559849756,-8000.0,0.00016149,2]
[395236300,1764559849765,-151.0,0.00016149,2]
[395236301,1764559849775,-151.0,0.00016149,2]
[395236302,1764559849784,-8000.0,0.00016149,2]
[395236303,1764559849793,-151.0,0.00016149,2]
[395236304,1764559849803,-151.0,0.00016149,2]
[395236305,1764559849813,-8000.0,0.00016149,2]
[395236306,1764559849822,-151.0,0.00016149,2]
[395236307,1764559849831,-151.0,0.00016149,2]
[395236308,1764559849840,-8000.0,0.00016149,2]
[395236309,1764559849849,-500.0,0.00016149,2]
[395236310,1764559849858,-151.0,0.00016149,2]
[395236311,1764559849867,-151.0,0.00016149,2]
[395236312,1764559849877,-8000.0,0.00016149,2]
[395236313,1764559849887,-500.0,0.00016149,2]
[395236314,1764559849896,-151.0,0.00016149,2]
[395236315,1764559849906,-151.0,0.00016149,2]
[395236316,1764559849915,-8000.0,0.00016149,2]
[395236317,1764559849927,-500.0,0.00016149,2]
[395236318,1764559849938,-151.0,0.00016149,2]
[395236319,1764559849948,-8000.0,0.00016149,2]
[395236320,1764559849957,-500.0,0.00016149,2]
[395236321,1764559849968,-151.0,0.00016149,2]
[395236322,1764559849978,-8000.0,0.00016149,2]
[395236323,1764559849987,-500.0,0.00016149,2]
[395236324,1764559849999,-578.20924308,0.00016149,2]
[395236325,1764559850008,-151.0,0.00016149,2]
[395236326,1764559850017,-8000.0,0.00016149,2]
[395236327,1764559850026,-500.0,0.00016149,2]
[395236328,1764559850035,-8000.0,0.00016149,2]
[395236329,1764559850044,-151.0,0.00016149,2]
[395236330,1764559850053,-500.0,0.00016149,2]
[395236331,1764559850065,-8000.0,0.00016149,2]
[395236332,1764559850075,-500.0,0.00016149,2]
[395236333,1764559850086,-8000.0,0.00016149,2]
[395236334,1764559850095,-500.0,0.00016149,2]
[395236335,1764559850104,-250.0,0.00016149,2]
[395236336,1764559850114,-250.0,0.00016149,2]
[395236337,1764559850123,-500.0,0.00016149,2]
[395236338,1764559850133,-250.0,0.00016149,2]
[395236339,1764559850143,-500.0,0.00016149,2]
[395236340,1764559850152,-250.0,0.00016149,2]
[395236341,1764559850161,-500.0,0.00016149,2]
[395236342,1764559850170,-250.0,0.00016149,2]
[395236343,1764559850180,-500.0,0.00016149,2]
[395236344,1764559850190,-250.0,0.00016149,2]
[395236345,1764559850199,-250.0,0.00016149,2]
[395236346,1764559850208,-250.0,0.00016149,2]
[395236347,1764559850217,-194.72792766,0.00016149,2]
[395236348,1764559850228,-250.0,0.00016149,2]
[395236349,1764559850237,-250.0,0.00016149,2]
[395236350,1764559850246,-151.0,0.00016149,2]
[395236351,1764559850255,-250.0,0.00016149,2]
[395236352,1764559850266,-3000.0,0.00016149,2]
[395236353,1764559850277,-250.0,0.00016149,2]
[395236354,1764559850288,-500.0,0.00016149,2]
[395236355,1764559850297,-250.0,0.00016149,2]
[395236356,1764559850306,-500.0,0.00016149,2]
[395236357,1764559850315,-500.0,0.00016149,2]
[395236358,1764559850325,-500.0,0.00016149,2]
[395236359,1764559850335,-500.0,0.00016149,2]
[395236360,1764559850344,-151.0,0.00016149,2]
[395236361,1764559850354,-500.0,0.00016149,2]
[395236362,1764559850363,-160.0,0.00016149,2]
[395236363,1764559850373,-500.0,0.00016149,2]
[395236364,1764559850382,-500.0,0.00016149,2]
[395236365,1764559850391,-500.0,0.00016149,2]
[395236366,1764559850401,-500.0,0.00016149,2]
[395236367,1764559850410,-500.0,0.00016149,2]
[395236368,1764559850419,-500.0,0.00016149,2]
[395236369,1764559850429,-500.0,0.00016149,2]
[395236370,1764559850439,-250.0,0.00016149,2]
[395236371,1764559850449,-250.0,0.00016149,2]
[395236372,1764559850459,-250.0,0.00016149,2]
[395236373,1764559850468,-250.0,0.00016149,2]
[395236374,1764559850477,-250.0,0.00016149,2]
[395236375,1764559850485,-322.6107,0.00016149,2]
[395236376,1764559850495,-250.0,0.00016149,2]
[395236377,1764559850505,-250.0,0.00016149,2]
[395236378,1764559850514,-250.0,0.00016149,2]
[395236379,1764559850523,-300.0,0.00016149,2]
[395236380,1764559850533,-250.0,0.00016149,2]
[395236381,1764559850542,-250.0,0.00016149,2]
[395236382,1764559850552,-250.0,0.00016149,2]
[395236383,1764559850561,-250.0,0.00016149,2]
[395236384,1764559850570,-250.0,0.00016149,2]
[395236385,1764559850579,-250.0,0.00016149,2]